{"text_format":"3","workbook":"xlsx","n_sheets":31,"sheets":["modProv","modList00","modList01","modList02","Инструкция","Лог обновления","Титульный","Список МО","Стандарты","Ссылки на публикации","Комментарии","Проверка","AllSheetsInThisWorkbook","TEHSHEET","et_union_hor","et_union_vert","modInfo","modRegion","modReestr","modfrmReestr","modUpdTemplMain","REESTR_ORG","modClassifierValidate","modHyp","modList03","modfrmDateChoose","modComm","modThisWorkbook","REESTR_MO","modfrmReestrMR","modfrmCheckUpdates"],"not_rendered":{"images":21,"macros":1,"external_links":1,"defined_names":138},"read":"whole","date_system":"1900"}

{"sheet":"modProv","index":0,"n_rows":0,"n_cols":0,"rows_kept":0,"hidden":true}

{"sheet":"modList00","index":1,"n_rows":0,"n_cols":0,"rows_kept":0,"hidden":true}

{"sheet":"modList01","index":2,"n_rows":0,"n_cols":0,"rows_kept":0,"hidden":true}

{"sheet":"modList02","index":3,"n_rows":0,"n_cols":0,"rows_kept":0,"hidden":true}

{"sheet":"Инструкция","index":4,"n_rows":102,"n_cols":27,"rows_kept":102,"merged":[[1,1,1,6],[2,1,2,2],[4,1,4,24],[6,4,18,23],[20,5,20,12],[20,15,20,23],[21,5,21,12],[21,15,21,23],[22,15,22,22],[34,4,38,23],[39,4,39,23],[40,4,44,23],[45,4,56,23],[57,4,57,6],[57,7,57,23],[58,4,58,6],[58,7,58,23],[59,4,59,6],[59,7,59,23],[60,7,60,23],[69,4,69,23],[70,4,70,23],[71,4,71,23],[72,4,72,23],[73,4,73,23],[74,4,74,23],[75,4,75,23],[76,4,76,23],[78,4,78,23],[79,4,79,7],[79,8,79,23],[80,4,80,6],[80,7,80,23],[81,4,81,6],[81,7,81,23],[82,4,82,6],[82,7,82,23],[83,7,83,23],[97,4,97,23],[99,5,99,18],[101,5,101,23]]}
[{"$nulls":26}," (требуется обновление)"]
[null,{"$f":"\"Код шаблона: \" & GetCode()","v":"Код шаблона: JKH.OPEN.INFO.REQUEST.VO"}]
[null,{"$f":"\"Версия \" & GetVersion()","v":"Версия 2.1.4"}]
[]
[null,"Предложение об установлении тарифов в сфере водоотведения и о способах приобретения, стоимости и объемах товаров, необходимых для производства регулируемых товаров и (или) оказания регулируемых услуг"]
[]
[{"$nulls":4},"• На рабочем месте должен быть установлен MS Office 2003 SP3, 2007 SP3, 2010 с полной версией MS Excel\n\n• Макросы во время работы должны быть включены (!)\n\n• Для корректной работы отчёта требуется выбрать низкий уровень безопасности\n(В меню MS Excel 2003: Сервис | Макрос | Безопасность | выбрать пункт «Низкая безопасность» | OK)\n(В меню MS Excel 2007/2010: Параметры Excel | Центр управления безопасностью | Параметры центра управления безопасностью | Параметры макросов | Включить все макросы | ОК)\n\n• Если Вы работаете в табличном процессоре MS Excel 2007 и выше, то можете использовать для работы формат XLSM (Книга Excel с поддержкой макросов). При работе в формате XLSM заметно быстрее происходит сохранение файла, а также уменьшается размер по сравнению с форматом XLS\n\n• Не рекомендуется снимать защиту с листов и каким-либо образом модифицировать защищаемые формулы и расчётные поля, в противном случае, отчёт будет отклонён системой\n\n• При сохранении не следует выбирать формат XLSX (Книга Excel), так как в указанном формате макросы, необходимые для работы отчёта, безвозвратно удаляются"]
{"$rows_empty":13}
[{"$nulls":4},"A"," - необязательные для заполнения",{"$nulls":8},"A"," - с формулами и константами"]
[{"$nulls":4},"A"," - обязательные для заполнения",{"$nulls":8},"A"," - с выбором значений до двойному клику,"]
[{"$nulls":15},"либо с возможностью выбора даты из календаря или ручного ввода"]
{"$rows_empty":11}
[{"$nulls":4},"Если в предложенном Вам списке необходимая организация, МР/МО отсутствуют, обновите реестры с помощью кнопок\n\nВ результате синхронизации с базой данных список организаций (МР/МО) будет заменён актуальным (механизм синхронизации требует подключения к сети Интернет и основан на использовании протокола HTTPS (TCP порт 443))\n\nЕсли после обновления Вам не удалось найти необходимую организацию в списке, обратитесь к ответственному за поддержание реестра Вашего региона. Информация о региональных органах регулирования доступна по ссылке:"]
[]
[]
[]
[]
[{"$nulls":4},"http://www.fstrf.ru/regions/region/showlist"]
[]
[]
[]
[]
[]
[{"$nulls":4},"• При сохранении шаблона осуществляется проверка корректности данных, в том числе на наличие значений в ячейках, обязательных для заполнения\n\n• Если какая-то ячейка не удовлетворяет условию проверки, на лист «Проверка» добавляется гиперссылка на данную ячейку и указывается причина ошибки\n\n• В колонке «Статус» для каждого сообщения возможны 2 значения: ошибка и предупреждение\n\n• При наличии сообщений со статусом «Ошибка» шаблон будет отклонён системой и не будет загружен в хранилище данных, сообщения со статусом «Предупреждение» носят информационный характер, и такой шаблон будет принят системой"]
{"$rows_empty":11}
[{"$nulls":4},"Web-сайт:",null,null,"http://support.eias.ru/index.php?a=add&catid=5"]
[{"$nulls":4},"Дистрибутивы:",null,null,"http://eias.ru/?page=show_distrs"]
[{"$nulls":7},"для устранения ошибок (например, \"Compile error in hidden module\")"]
{"$rows_empty":9}
[{"$nulls":4},"Принципы работы с шаблоном"]
[{"$nulls":4}," Перед началом работы с шаблоном Вам необходимо нажать кнопку \"Приступить к заполнению\", после чего на форме выбора выбрать из выпадающего списка нужный субъект РФ. После выбора субъекта РФ в шаблоне отобразятся листы для заполнения."]
[{"$nulls":4}," На листе «Титульный» нужно заполнить все ячейки голубого и синего цвета.\n Для создания печатной формы нажмите на иконку принтера на листе «Титульный» (левый верхний угол)."]
[{"$nulls":4}," Гиперссылки на листах вводите, не нарушая цвет ячейки (если копируете гиперссылку из браузера, то выполните двойной щелчок левой кнопки мыши по ячейке и только после этого можете вставить скопированный элемент).\n"]
[{"$nulls":4}," При вводе даты на расчетных листах необходимо выбрать дату из календаря (иконка справа от выбранной ячейки), либо ввести дату непосредственно в ячейку в формате - 'ДД.ММ.ГГГГ'."]
[{"$nulls":4}," Если какой-либо из показателей на расчетных листах для Вашей организации отсутствует, введите в поле, обязательное для заполнение, «0» (для числовых показателей) и «-» (для текстовых).\n"]
[{"$nulls":4}," Внимательно следите за информационными сообщениями на расчетных листах."]
[{"$nulls":4}," Все необходимые комментарии по всем формам Вы можете отразить на листе «Комментарии»."]
[]
[{"$nulls":4},"Обосновывающие материалы (документы) необходимо загружать с помощью \"ЕИАС Мониторинг\""]
[{"$nulls":4},"Инструкция",{"$nulls":3},"http://eias.ru/files/shablon/manual_loading_through_monitoring.pdf"]
[]
[{"$nulls":4},"E-mail:",null,null,"openinfo@eias.ru"]
[{"$nulls":4},"Web-сайт:",null,null,"http://eias.ru/?page=show_templates"]
{"$rows_empty":14}
[{"$nulls":4},"При наличии подключения к Интернет, можно автоматически проверять наличие доступных обновлений. Выберите способ оповещения о наличии обновлений для отчёта:"]
[]
[{"$nulls":5},"проверять доступные обновления (рекомендуется)",{"$nulls":20},"y"]
[]
[{"$nulls":5},"никогда не проверять наличие обновлений (не рекомендуется)"]

{"sheet":"Лог обновления","index":5,"n_rows":14,"n_cols":3,"rows_kept":14,"hidden":true}
["Дата/Время","Сообщение","Статус"]
[]
["2014-05-26T13:45:38","Проверка доступных обновлений...","Информация"]
["2014-05-26T13:45:38","Версия шаблона 2.1.3 актуальна, обновление не требуется","Информация"]
["2016-05-04T10:28:47","Проверка доступных обновлений...","Информация"]
["2016-05-04T10:28:48","Доступно обновление до версии 2.1.4","Информация"]
["2016-05-04T10:28:49","Описание изменений: ! Обновление доступно для шаблонов версии 2.1 и выше\n\nдо версии 2.1.4\n1. скорректированы формулировки на листе 'Стандарты' согласно нормативно-правовым актам\n\t\nдо версии 2.1.3\t\t\n1. скорректировано заполнение поля 'Условный порядковый номер' на листе 'Список МО';\t\t\n2. добавлена информации о соответствие форм приказа ФСТ России № 129 от 15 мая 2013 г. на листе 'Стандарты';\t\t\n3. добавлен показатель 'размер недополученных доходов регулируемой организацией (при их наличии), исчисленном в соответствии с основами ценообразования в сфере водоснабжения и водоотведения, утверждаемыми Правительством Российской Федерации, тыс руб' на листе 'Стандарты'\t\t\n\t\t\nдо версии 2.1.2\t\t\n1. скорректирована проверка при сохранении\t\t\n\t\t\nдо версии 2.1.1\t\t\n1. расширен список значений поля 'Метод регулирования' (п.1.2) на листе 'Стандарты'\n\nЕсли версия Вашего шаблона ниже 2.1, обратитесь к администратору Вашего субъекта РФ.","Информация"]
["2016-05-04T10:28:49","Размер файла обновления: 443904 байт","Информация"]
["2016-05-04T10:28:52","Подготовка к обновлению...","Информация"]
["2016-05-04T10:29:06","Сохранение файла резервной копии: D:\\МОЯ РАБОТА\\РАСКРЫТИЕ ИНФО все предприятия\\СКС\\2017\\JKH.OPEN.INFO.REQUEST.VO (1).BKP..xlsm","Информация"]
["2016-05-04T10:29:10","Резервная копия создана: D:\\МОЯ РАБОТА\\РАСКРЫТИЕ ИНФО все предприятия\\СКС\\2017\\JKH.OPEN.INFO.REQUEST.VO (1).BKP..xlsm","Информация"]
["2016-05-04T10:29:11","Создание книги для установки обновлений...","Информация"]
["2016-05-04T10:29:18","Файл обновления загружен: D:\\МОЯ РАБОТА\\РАСКРЫТИЕ ИНФО все предприятия\\СКС\\2017\\UPDATE.JKH.OPEN.INFO.REQUEST.VO.TO.2.1.4.23.xls","Информация"]
["2016-05-04T10:29:28","Обновление завершилось удачно! Шаблон JKH.OPEN.INFO.REQUEST.VO (1).xlsm сохранен под именем 'JKH.OPEN.INFO.REQUEST.VO (1)(v2.1.4).xlsm'","Информация"]

{"sheet":"Титульный","index":6,"n_rows":54,"n_cols":6,"rows_kept":54,"merged":[[4,4,4,5]]}
[{"$nulls":5},28453902]
[]
[]
[{"$nulls":5},{"$f":"version","v":"Версия 2.1.4"}]
[{"$nulls":4},"Предложение об установлении тарифов в сфере водоотведения и о способах приобретения, стоимости и объемах товаров, необходимых для производства регулируемых товаров и (или) оказания регулируемых услуг"]
[]
[{"$nulls":4},"Субъект РФ","Республика Хакасия"]
[]
[{"$nulls":4},"Публикация","На сайте регулирующего органа"]
[]
[{"$nulls":4},"По желанию организации информация раскрыта в дополнительных источниках публикации?","да"]
[]
["нет",{"$nulls":3},"Указывать разбивку НВВ по полугодиям","нет"]
[]
[{"$nulls":5},"Период регулирования"]
["01.07.2017",{"$nulls":3},"Начало очередного периода регулирования","01.07.2017"]
["31.12.2017",{"$nulls":3},"Окончание очередного периода регулирования","31.12.2017"]
[]
[{"$nulls":4},"Является ли данное юридическое лицо подразделением (филиалом) другой организации","нет"]
[]
[{"$nulls":4},"Наименование организации","ООО \"Саяногорские коммунальные системы\""]
[{"$nulls":4},"Наименование филиала"]
[{"$nulls":4},"ИНН","1902025326"]
[{"$nulls":4},"КПП","190201001"]
[]
[{"$nulls":4},"Вид деятельности","Оказание услуг в сфере водоотведения и очистки сточных вод"]
[]
[{"$nulls":4},"Режим налогообложения","общий"]
[]
[{"$nulls":4},"Организация выполняет/планирует к выполнению инвестиционную программу","нет"]
[]
["тариф на водоотведение",{"$nulls":3},"Тариф","тариф на водоотведение"]
[]
[{"$nulls":4},"Наличие двухставочного тарифа","нет"]
[]
[{"$nulls":4},"НДС (Отметка об учтенном НДС)","тариф указан без НДС для плательщиков НДС"]
[]
[{"$nulls":5},"Адрес регулируемой организации"]
[{"$nulls":4},"Юридический адрес","г. Саяногорск, ул Индустриальная 19"]
[{"$nulls":4},"Почтовый адрес","г. Саяногорск, ул Индустриальная 19"]
[]
[{"$nulls":5},"Руководитель"]
[{"$nulls":4},"Фамилия, имя, отчество","Рябиков Олег Геннадьевич"]
[{"$nulls":4},"(код) номер телефона","39042 2 80 92"]
[]
[{"$nulls":5},"Главный бухгалтер"]
[{"$nulls":4},"Фамилия, имя, отчество","нет"]
[{"$nulls":4},"(код) номер телефона","нет"]
[]
[{"$nulls":5},"Должностное лицо, ответственное за составление формы"]
[{"$nulls":4},"Фамилия, имя, отчество","Табакаева Лилия Сергеевна"]
[{"$nulls":4},"Должность","экономист"]
[{"$nulls":4},"(код) номер телефона","39042 2 42 48"]
[{"$nulls":4},"e-mail","tabakaeva_ls@nitec.irkutskenergo.ru"]

{"sheet":"Список МО","index":7,"n_rows":16,"n_cols":8,"rows_kept":16,"merged":[[3,3,3,7],[4,3,4,7],[6,5,6,7],[7,5,7,7],[8,5,8,7],[13,3,14,3],[13,4,14,4]]}
[]
[]
[]
[{"$nulls":3},"Дифференциация тарифа"]
[{"$nulls":3},{"$f":"IF(org=0,\"Не определено\",org)","v":"ООО \"Саяногорские коммунальные системы\""}]
[]
[{"$nulls":5},"Система коммунальной инфраструктуры"]
[{"$nulls":4},"Условный порядковый номер",1]
[{"$nulls":4},"Описание","сети водоотведения"]
[]
[{"$nulls":3},"№ п/п","Муниципальный район","№ п/п","Муниципальное образование","ОКТМО"]
[{"$nulls":3},"1","2","3","4","5"]
[{"$nulls":3},0,null,0]
[{"$nulls":3},1,"город Саяногорск",1,"город Саяногорск","95708000"]
[{"$nulls":6},"Добавить МО"]
[{"$nulls":4},"Добавить МР"]

{"sheet":"Стандарты","index":8,"n_rows":34,"n_cols":8,"rows_kept":34,"merged":[[4,3,4,7],[5,3,5,7],[15,0,17,0],[15,1,17,1],[35,4,35,7]]}
[]
[]
[]
[{"$nulls":7},"Приложение 3 к приказу ФСТ России от 15 мая 2013 г. N 129, Форма 3.11, Форма 3.12"]
[{"$nulls":3},"Предложение об установлении тарифов в сфере водоотведения и о способах приобретения, стоимости и объемах товаров, необходимых для производства регулируемых товаров и (или) оказания регулируемых услуг"]
[{"$nulls":3},{"$f":"IF(org=0,\"Не определено\",org)","v":"ООО \"Саяногорские коммунальные системы\""}]
[]
[{"$nulls":3},"№ п/п","Информация, подлежащая раскрытию","Значение","Ссылки на документы","Примечание"]
[{"$nulls":3},"1","2","3","4","5"]
[{"$nulls":3},"1","Информация о предложении регулируемой организации об установлении тарифов в сфере водоотведения и (или) очистки сточных вод на очередной период регулирования",null,null,0]
[{"$nulls":3},"1.1","Копия утвержденной в установленном порядке инвестиционной программы (проекта инвестиционной программы)"]
[{"$nulls":3},"1.2","Предлагаемый метод регулирования",null,null,0]
[null,"О",null,"1.2.1",{"$f":"\"с \"&periodStart & \" по \" & periodEnd","v":"с 01.07.2017 по 31.12.2017"},"метод индексации установленных тарифов"]
[{"$nulls":4},"Предлагаемый метод регулирования"]
[{"$nulls":3},"1.3","Расчетная величина тарифов",null,null,0]
["1.3.1","О",null,{"$f":"A16","v":"1.3.1"},{"$f":"\"с 01.07.2017 по 31.12.2017\" & IF(double_rate_tariff=\"да\",,\", \"&unit_tariff_single_rate)","v":"с 01.07.2017 по 31.12.2017, руб/м3"},{"$f":"'[1]смета ВО'!$F$82","v":{"v":42.67929836103756,"d":"42.68"}}]
[{"$nulls":3},{"$f":"D16&\".1\"","v":"1.3.1.1"},{"$f":"TEHSHEET!$U$2&\", \" & unit_tariff_double_rate_p","v":"потребление, руб/м3"}]
[{"$nulls":3},{"$f":"D16&\".2\"","v":"1.3.1.2"},{"$f":"TEHSHEET!$V$2&\", \" & unit_tariff_double_rate_c","v":"содержание,  тыс руб в месяц/м3/час"}]
[{"$nulls":4},"Расчетная величина тарифов"]
[{"$nulls":3},"1.4","Период действия тарифов",{"$f":"\"с \"&periodStart & \" по \" & periodEnd & \" гг.\"","v":"с 01.07.2017 по 31.12.2017 гг."}]
[{"$nulls":3},"1.5","Сведения о долгосрочных параметрах регулирования (в случае если их установление предусмотрено выбранным методом регулирования)","http://www.irkutskenergo.ru/"]
[{"$nulls":3},"1.6","Сведения о необходимой валовой выручке на соответствующий период, тыс руб",{"$f":"SUM(F23:F24)","v":{"v":165833.03645460904,"d":"165,833.04"}}]
[null,"О",null,"1.6.1","с 01.07.2017 по 31.12.2017",{"$f":"'[1]смета ВО'!$F$122","v":{"v":165833.03645460904,"d":"165,833.04"}}]
[{"$nulls":4},"Добавить НВВ"]
[{"$nulls":3},"1.7",{"$f":"\"Годовой объем отпущенной в сеть воды, \"&unit_tariff_useful_output","v":"Годовой объем отпущенной в сеть воды, тыс м3"},null,null,0]
[null,"О",null,"1.7.1",{"$f":"\"с \"&periodStart & \" по \" & periodEnd","v":"с 01.07.2017 по 31.12.2017"},{"$f":"'[1]смета ВО'!$F$88","v":{"v":4180.741195632001,"d":"4,180.74"}}]
[{"$nulls":4},{"$f":"\"Годовой объем отпущенной в сеть воды, \"&unit_tariff_useful_output","v":"Годовой объем отпущенной в сеть воды, тыс м3"}]
[{"$nulls":3},"1.8","Размер экономически обоснованных расходов, не учтенных при регулировании тарифов в предыдущий период регулирования (при их наличии), определенном в соответствии с основами ценообразования в сфере водоснабжения и водоотведения, утвержденными постановлением Правительства Российской Федерации от 13.05.2013 N 406 (Официальный интернет-портал правовой информации http://www.pravo.gov.ru, 15.05.2013), тыс руб",{"$f":"'[1]анал тар реш ВО 2016'!$N$32+'[1]анал тар реш ВО 2016'!$N$33+'[1]анал тар реш ВО 2016'!$N$34","v":{"v":9876.575595252058,"d":"9,876.58"}}]
[{"$nulls":3},"1.9","Размер недополученных доходов регулируемой организацией (при их наличии), исчисленный в соответствии Основами ценообразования в сфере водоснабжения и водоотведения, утвержденными постановлением Правительства Российской Федерации от 13.05.2013 N 406 (Официальный интернет-портал правовой информации http://www.pravo.gov.ru, 15.05.2013), тыс руб",{"$f":"'[1]смета ВО'!$F$115+'[1]смета ВО'!$F$118","v":{"v":38572.714742233344,"d":"38,572.71"}}]
[{"$nulls":3},"2","Информация о способах приобретения, стоимости и об объемах товаров, необходимых для производства регулируемых товаров и(или) оказания регулируемых услуг регулируемой организацией",null,null,0]
[{"$nulls":3},"2.1","Сведения о правовых актах, регламентирующих правила закупки (положение о закупках) в регулируемой организации","Решение акционера которому принадлежат все голосующие акции ЗАО Байкалэнерго и ОАО Иркутскэнерго от 23.03.2012"]
[{"$nulls":3},"2.2","Место размещения положения о закупках регулируемой организации","www.zakupki.gov.ru"]
[null,3,null,"2.3","Cведения о планировании закупочных процедур и результатах их проведения","www.zakupki.gov.ru"]
[{"$nulls":4},"Добавить сведения"]

{"sheet":"Ссылки на публикации","index":9,"n_rows":15,"n_cols":8,"rows_kept":15,"merged":[[4,3,4,7],[5,3,5,7],[10,0,11,0],[10,4,10,7],[12,0,13,0],[12,4,12,7]]}
[]
[]
[]
[]
[{"$nulls":3},"Ссылки на публикации"]
[{"$nulls":3},{"$f":"IF(org=0,\"Не определено\",org)","v":"ООО \"Саяногорские коммунальные системы\""}]
[]
[]
[{"$nulls":3},"№ п/п","Содержание","Наименование сайта","Дата размещения информации","Адрес страницы сайта в сети \"Интернет\", на которой размещена информация"]
[{"$nulls":3},"1","2","3","4","5"]
["1",null,null,{"$f":"A11","v":"1"},"Информация о способах приобретения, стоимости и объемах товаров, необходимых для производства регулируемых товаров и (или) оказания регулируемых услуг регулируемой организацией, содержит сведения о правовых актах, регламентирующих правила закупки (положение о закупках) в регулируемой организации, а также о месте размещения положения о закупках регулируемой организации, информации о планировании конкурсных процедур и результатах их проведения (п. 46 Постановления Правительства Российской Федерации от 17 января 2013 г. N 6 \"О стандартах раскрытия информации в сфере водоснабжения и водоотведения\") \n\n"]
[{"$nulls":3},{"$f":"A11&\".1\"","v":"1.1"},"Сайт организации в сети Интернет","Иркутскэнерго","04.05.2016","http://www.irkutskenergo.ru/"]
["2",null,null,{"$f":"A13","v":"2"},"Информация о предложении регулируемой организации об установлении тарифов в сфере горячего водоснабжения на очередной период регулирования (п.47 Постановления Правительства Российской Федерации от 17 января 2013 г. N 6 \"О стандартах раскрытия информации в сфере водоснабжения и водоотведения\")"]
[{"$nulls":3},{"$f":"A13&\".1\"","v":"2.1"},"Сайт организации в сети Интернет","Иркутскэнерго","04.05.2016","http://www.irkutskenergo.ru/"]
[{"$nulls":4},"Добавить"]

{"sheet":"Комментарии","index":10,"n_rows":13,"n_cols":5,"rows_kept":13,"merged":[[6,3,6,4],[7,3,7,4]]}
[]
[]
[]
[]
[]
[]
[{"$nulls":3},"Комментарии"]
[{"$nulls":3},{"$f":"IF(org=0,\"Не определено\",org)","v":"ООО \"Саяногорские коммунальные системы\""}]
[]
[{"$nulls":3},"№ п/п","Комментарий"]
[{"$nulls":3},"1","2"]
[{"$nulls":3},0]
[{"$nulls":4},"Добавить"]

{"sheet":"Проверка","index":11,"n_rows":20,"n_cols":4,"rows_kept":20,"merged":[[1,1,1,3]]}
[]
[null,"Результат проверки"]
[]
[null,"Ссылка","Причина","Статус"]
[null,"Стандарты!H13","Не указано значение!","Предупреждение"]
[null,"Стандарты!H16","Не указано значение!","Предупреждение"]
[null,"Стандарты!H20","Не указано значение!","Предупреждение"]
[null,"Стандарты!G21","Не указано значение!","Предупреждение"]
[null,"Стандарты!H21","Не указано значение!","Предупреждение"]
[null,"Стандарты!H22","Не указано значение!","Предупреждение"]
[null,"Стандарты!H23","Не указано значение!","Предупреждение"]
[null,"Стандарты!H26","Не указано значение!","Предупреждение"]
[null,"Стандарты!H28","Не указано значение!","Предупреждение"]
[null,"Стандарты!H29","Не указано значение!","Предупреждение"]
[null,"Стандарты!G31","Не указано значение!","Предупреждение"]
[null,"Стандарты!H31","Не указано значение!","Предупреждение"]
[null,"Стандарты!G32","Не указано значение!","Предупреждение"]
[null,"Стандарты!H32","Не указано значение!","Предупреждение"]
[null,"Стандарты!G33","Не указано значение!","Предупреждение"]
[null,"Стандарты!H33","Не указано значение!","Предупреждение"]

{"sheet":"AllSheetsInThisWorkbook","index":12,"n_rows":24,"n_cols":2,"rows_kept":24,"hidden":true}
["Расчетные листы","Скрытые листы"]
["Инструкция","modProv"]
["Лог обновления","AllSheetsInThisWorkbook"]
["Титульный","TEHSHEET"]
["Список МО","et_union_hor"]
["Стандарты","et_union_vert"]
["Ссылки на публикации","modInfo"]
["Комментарии","modRegion"]
["Проверка","modReestr"]
[null,"modfrmReestr"]
[null,"modUpdTemplMain"]
[null,"REESTR_ORG"]
[null,"modClassifierValidate"]
[null,"modHyp"]
[null,"modList00"]
[null,"modList01"]
[null,"modList02"]
[null,"modList03"]
[null,"modfrmDateChoose"]
[null,"modComm"]
[null,"modThisWorkbook"]
[null,"REESTR_MO"]
[null,"modfrmReestrMR"]
[null,"modfrmCheckUpdates"]

{"sheet":"TEHSHEET","index":13,"n_rows":85,"n_cols":23,"rows_kept":85,"hidden":true,"merged":[[0,19,1,19],[0,20,0,21],[0,22,1,22]]}
["REGION",null,"year_list","logical","Месяц\n(MONTH)","Квартал\n(QUARTER)","Месяц\n(kind_of_publication)","Режим налогообложения\n/kind_of_NDS/","Номер СЦХВ(СЦВО)\n/SKI_number/","Единица измерения объема оказываемых услуг ГВС\n/kind_of_unit_GVS/","Метод регулирования\n/kind_of_control_method/",null,null,"версия шаблона\n (DocProp_Version)","6.0",{"$nulls":3},"виды групп товаров\n/kind_group_rates/","Одноставочный","Двухставочный",null,"Полезный отпуск"]
["Алтайский край",null,2013,"да","январь","I квартал","На официальном сайте организации","общий","1","тыс.куб.м/сутки","метод экономически обоснованных расходов (затрат)",null,null,"код шаблона\n(DocProp_TemplateCode)","JKH.OPEN.INFO.QUARTER.GVS",{"$nulls":5},{"$f":"IF(group_rates=$S$6,\"нагрузка\",\"потребление\")","v":"потребление"},{"$f":"IF(group_rates=$S$6,\"протяженность сети\",\"содержание\")","v":"содержание"}]
["Амурская область",null,2014,"нет","февраль","II квартал","На сайте регулирующего органа","общий с учетом освобождения от уплаты НДС","2","Гкал/час","метод индексации установленных тарифов",null,null,"сфера\n(TSphere)","ГВС",{"$nulls":3},"единица измерения для листа Стандарты\n/unit_tariff/","руб/м3","руб/м3"," тыс руб в месяц/м3/час","тыс м3"]
["Архангельская область",null,2015,null,"март","III квартал",null,"специальный (упрощенная система налогообложения, система налогообложения для сельскохозяйственных товаропроизводителей)","3","куб.м/час","метод обеспечения доходности инвестированного капитала",null,null,"сфера(латиница)\n(TSphere_trans)","GVS",{"$nulls":3},"тариф на водоотведение","руб/м3","руб/м3"," тыс руб в месяц/м3/час","тыс м3"]
["Астраханская область",null,2016,null,"апрель","IV квартал",null,null,"4",null,"метод сравнения аналогов",null,null,"сфера расширено\n(TSphere_full)","горячего водоснабжения",{"$nulls":3},"тариф на транспортировку сточных вод","руб/м3","руб/м3"," тыс руб в месяц/м3/час","тыс м3"]
["Белгородская область",null,2017,null,"май",null,null,"НДС для общего режима налогообложения\n/kind_of_NDS_tariff/","5",null,"метод установления фиксированных тарифов",{"$nulls":7},"тариф на подключение к централизованной системе водоотведения","-","руб/м3/час","руб/км","тыс м3"]
["Брянская область",{"$nulls":3},"июнь",null,null,"тариф указан с НДС для плательщиков НДС","6",null,"метод установления предельных тарифов"]
["Владимирская область",{"$nulls":3},"июль",null,null,"тариф указан без НДС для плательщиков НДС","7"]
["Волгоградская область",{"$nulls":3},"август",{"$nulls":3},"8"]
["Вологодская область",{"$nulls":3},"сентябрь",null,null,"НДС для прочих режимов налогообложения\n/kind_of_NDS_tariff_etc/","9"]
["Воронежская область",{"$nulls":3},"октябрь",null,null,"тариф для организаций не являющихся плательщиками НДС","10"]
["г.Байконур",{"$nulls":3},"ноябрь",{"$nulls":3},"11"]
["г. Москва",{"$nulls":3},"декабрь",{"$nulls":3},"12"]
["г.Санкт-Петербург",{"$nulls":7},"13"]
["Еврейская автономная область",{"$nulls":7},"14"]
["Забайкальский край",{"$nulls":7},"15"]
["Ивановская область",{"$nulls":7},"16"]
["Иркутская область",{"$nulls":7},"17"]
["Кабардино-Балкарская республика",{"$nulls":7},"18"]
["Калининградская область",{"$nulls":7},"19"]
["Калужская область",{"$nulls":7},"20"]
["Камчатский край"]
["Карачаево-Черкесская республика"]
["Кемеровская область"]
["Кировская область"]
["Костромская область"]
["Краснодарский край"]
["Красноярский край"]
["Курганская область"]
["Курская область"]
["Ленинградская область"]
["Липецкая область"]
["Магаданская область"]
["Московская область"]
["Мурманская область"]
["Ненецкий автономный округ"]
["Нижегородская область"]
["Новгородская область"]
["Новосибирская область"]
["Омская область"]
["Оренбургская область"]
["Орловская область"]
["Пензенская область"]
["Пермский край"]
["Приморский край"]
["Псковская область"]
["Республика Адыгея"]
["Республика Алтай"]
["Республика Башкортостан"]
["Республика Бурятия"]
["Республика Дагестан"]
["Республика Ингушетия"]
["Республика Калмыкия"]
["Республика Карелия"]
["Республика Коми"]
["Республика Марий Эл"]
["Республика Мордовия"]
["Республика Саха (Якутия)"]
["Республика Северная Осетия-Алания"]
["Республика Татарстан"]
["Республика Тыва"]
["Республика Хакасия"]
["Ростовская область"]
["Рязанская область"]
["Самарская область"]
["Саратовская область"]
["Сахалинская область"]
["Свердловская область"]
["Смоленская область"]
["Ставропольский край"]
["Тамбовская область"]
["Тверская область"]
["Томская область"]
["Тульская область"]
["Тюменская область"]
["Удмуртская республика"]
["Ульяновская область"]
["Хабаровский край"]
["Ханты-Мансийский автономный округ"]
["Челябинская область"]
["Чеченская республика"]
["Чувашская республика"]
["Чукотский автономный округ"]
["Ямало-Ненецкий автономный округ"]
["Ярославская область"]

{"sheet":"et_union_hor","index":14,"n_rows":43,"n_cols":7,"rows_kept":43,"hidden":true,"merged":[[3,3,4,3],[3,4,4,4],[15,0,16,0],[15,4,15,7],[27,0,29,0],[27,1,29,1]]}
[]
["et_List01","et_List01_1"]
[]
[{"$nulls":5},1]
[{"$nulls":6},"Добавить МО"]
[]
[]
["et_Comm"]
[]
[]
[]
[]
["et_List03"]
[]
[]
[{"$nulls":3},{"$f":"A16","v":0}]
[{"$nulls":3},{"$f":"A16&\".1\"","v":".1"},"Сайт организации в сети Интернет"]
[]
[]
[]
["et_List02_1"]
[]
[{"$nulls":4},{"$f":"\"с \"&periodStart & \" по \" & periodEnd","v":"с 01.07.2017 по 31.12.2017"}]
[]
[]
["et_List02_2"]
[]
[{"$nulls":3},{"$f":"A28","v":0},{"$f":"\"с \"&periodStart & \" по \" & periodEnd & IF(double_rate_tariff=\"да\",,\", \"&unit_tariff_single_rate)","v":"с 01.07.2017 по 31.12.2017, руб/м3"}]
[{"$nulls":3},{"$f":"D28&\".1\"","v":"0.1"},{"$f":"TEHSHEET!$U$2&\", \" & unit_tariff_double_rate_p","v":"потребление, руб/м3"}]
[{"$nulls":3},{"$f":"D28&\".2\"","v":"0.2"},{"$f":"TEHSHEET!$V$2&\", \" & unit_tariff_double_rate_c","v":"содержание,  тыс руб в месяц/м3/час"}]
[]
[]
["et_List02_3"]
[]
[{"$nulls":4},{"$f":"\"с \"&periodStart & \" по \" & periodEnd","v":"с 01.07.2017 по 31.12.2017"}]
[]
[]
["et_List02_4"]
[]
[{"$nulls":4},{"$f":"\"с \"&periodStart & \" по \" & periodEnd","v":"с 01.07.2017 по 31.12.2017"}]
[]
[]
["et_List02_5"]

{"sheet":"et_union_vert","index":15,"n_rows":0,"n_cols":0,"rows_kept":0,"hidden":true}

{"sheet":"modInfo","index":16,"n_rows":17,"n_cols":2,"rows_kept":17,"hidden":true}
[null,"Титульный"]
[null,"Для выбора того или иного источника публикации выполните двойной щелчок по синей ячейке напротив соответствующего источника.\nВНИМАНИЕ! Если Вы снимаете галочку с пункта, то будут скрыты и очищены соответствующие строки на листе \"Ссылки на публикации\"!\n\nОпубликование перечисленных в шаблоне показателей на сайте организации в сети Интернет и в печатных изданиях не обязательно, если данный шаблон предоставлен по системе ЕИАС (региональный сегмент)."]
[null,"Обязательное опубликование на официальном сайте органа исполнительной власти субъекта Российской Федерации в области государственного регулирования тарифов (на официальном сайте органа местного самоуправления поселения или городского округа в случае передачи законом субъекта Российской Федерации полномочий по утверждению тарифов в сфере водоснабжения и водоотведения органам местного самоуправления) предусмотрено пунктом 3 (а) постановления Правительства №6 от 17.01.2013"]
[null,"Задайте период регулирования, выбрав даты начала и окончания очередного периода регулирования из календаря (иконка справа от указанной ячейки), либо введите дату непосредственно в ячейку в формате - 'ДД.ММ.ГГГГ'"]
[null,"Шаблон заполняется раздельно по каждому виду тарифа"]
[null,"Ссылки на публикации"]
[null,"Вводите адрес сайта, не нарушая цвет ячейки /если копируете гиперссылку из браузера, то выполните двойной щелчок по ячейке и только после этого можете вставить скопированный элемент/"]
[null,"Обосновывающие материалы (документы) необходимо загружать с помощью \"ЕИАС Мониторинг\". Ссылка на инструкцию по загрузке обосновывающих материалов (документов) расположена на листе 'Инструкция' в п.'Методология заполнения'.\n\nВвводите ссылку, не нарушая цвет ячейки /если копируете гиперссылку из браузера, то выполните двойной щелчок по ячейке и только после этого можете вставить скопированный элемент/."]
[null,"Если для какого-либо пункта графы 'Наименование источника (сайта или печатного издания)' информация не раскрывалась, то в соответствующем поле укажите - 'не раскрывалась'"]
[null,"Список МО"]
[null,"В случае, если тариф не дифференцируется по системам коммунальной инфраструктуры, перечислите все муниципальные районы, в которых организация осуществляет услуги водоотведения и (или) очистки сточных вод"]
[null,"В случае, если тариф не дифференцируется по системам коммунальной инфраструктуры, перечислите все муниципальные образования, в которых организация осуществляет услуги водоотведения и (или) очистки сточных вод"]
[null,"Признак дифференциации тарифа"]
[null,"В случае, если тариф не дифференцируется по системам водоотведения, укажите '1'. Введите значение от 1 до 100, чтобы указать очередной условный порядковый номер системы водоотведения"]
[null,"Стандарты"]
[null,"В качестве примечания Вы можете указать единицу измерения"]
[null,{"$f":"\"Укажите в ячейке \" & ADDRESS(ROW(Стандарты!$F$21),COLUMN(Стандарты!$F$21),4,TRUE) & \", ссылку на сведения о долгосрочных параметрах регулирования, размещенные в сети Интернет, либо укажите в ячейке \" & ADDRESS(ROW(Стандарты!$G$21),COLUMN(Стандарты!$G$21),4,TRUE) & \" ссылку на материалы Хранилища\"","v":"Укажите в ячейке F21, ссылку на сведения о долгосрочных параметрах регулирования, размещенные в сети Интернет, либо укажите в ячейке G21 ссылку на материалы Хранилища"}]

{"sheet":"modRegion","index":17,"n_rows":0,"n_cols":0,"rows_kept":0,"hidden":true}

{"sheet":"modReestr","index":18,"n_rows":0,"n_cols":0,"rows_kept":0,"hidden":true}

{"sheet":"modfrmReestr","index":19,"n_rows":0,"n_cols":0,"rows_kept":0,"hidden":true}

{"sheet":"modUpdTemplMain","index":20,"n_rows":0,"n_cols":0,"rows_kept":0,"hidden":true}

{"sheet":"REESTR_ORG","index":21,"n_rows":82,"n_cols":12,"rows_kept":82,"hidden":true}
["№","NSRF","MR_NAME","OKTMO_MR_NAME","MO_NAME","OKTMO_NAME","RST_ORG_ID","ORG_NAME","INN_NAME","KPP_NAME","VDET_NAME"]
[1,"Республика Хакасия","Алтайский","95605000","Белоярское","95605410","30373066","МУП \"ПРОГРЕСС\"","1901125790","190101001","Оказание услуг в сфере водоотведения и очистки сточных вод","VO"]
[2,"Республика Хакасия","Алтайский","95605000","Белоярское","95605410","26354666","ОАО \"Белоярский тепловодоканал\"","1901098096","190101001","Оказание услуг в сфере водоотведения и очистки сточных вод","VO"]
[3,"Республика Хакасия","Алтайский","95605000","Белоярское","95605410","28072939","ООО \"ВиКтория\"","1901109750","190101001","Оказание услуг в сфере водоотведения и очистки сточных вод","VO"]
[4,"Республика Хакасия","Алтайский","95605000","Белоярское","95605410","28870819","ООО \"УЖКС\"","1901120619","190101001","Оказание услуг в сфере водоотведения и очистки сточных вод","VO"]
[5,"Республика Хакасия","Алтайский","95605000","Изыхское","95605418","28012374","МУП МО Изыхский сельсовет \"Изыхское\"","1901109439","190101001","Оказание услуг в сфере водоотведения и очистки сточных вод","VO"]
[6,"Республика Хакасия","Алтайский","95605000","Подсинское","95605445","26522906","ГУП \"Хакресводоканал\"","1901001202","191001001","Оказание услуг в сфере водоотведения и очистки сточных вод","VO"]
[7,"Республика Хакасия","Алтайский","95605000","Подсинское","95605445","30394679","МУП \"Подсинее\"","1901121570","190101001","Оказание услуг в сфере очистки сточных вод","VO"]
[8,"Республика Хакасия","Алтайский","95605000","Подсинское","95605445","26354660","МУП ЖКХ с.Подсинее","1904003198","190401001","Оказание услуг в сфере водоотведения и очистки сточных вод","VO"]
[9,"Республика Хакасия","Алтайский","95605000","Подсинское","95605445","26355163","ООО  \"Сибирская губерния\"","1904005364","190401001","Оказание услуг в сфере водоотведения и очистки сточных вод","VO"]
[10,"Республика Хакасия","Аскизский","95608000","Аскизское","95608405","27880575","ООО \"Аскиз-Сервис\"","1905010110","190501001","Оказание услуг в сфере водоотведения и очистки сточных вод","VO"]
[11,"Республика Хакасия","Аскизский","95608000","Аскизское","95608405","26354669","ООО \"Аскизсервис\"","1905009450","190501001","Оказание услуг в сфере водоотведения и очистки сточных вод","VO"]
[12,"Республика Хакасия","Аскизский","95608000","Поселок Аскиз","95608151","27201122","МУП МО Аскизский поссовет \"Аскизские тепловые сети\"","1905010720","190501001","Оказание услуг по перекачке","VO"]
[13,"Республика Хакасия","Аскизский","95608000","Поселок Аскиз","95608151","27880575","ООО \"Аскиз-Сервис\"","1905010110","190501001","Оказание услуг в сфере водоотведения и очистки сточных вод","VO"]
[14,"Республика Хакасия","Аскизский","95608000","Поселок Аскиз","95608151","26523135","ООО \"Тепловик\"","1905009918","190501001","Оказание услуг в сфере водоотведения и очистки сточных вод","VO"]
[15,"Республика Хакасия","Аскизский","95608000","Поселок Аскиз","95608151","26523120","ООО \"Тепловик\"","1905009918","190501001","Оказание услуг в сфере водоотведения и очистки сточных вод","VO"]
[16,"Республика Хакасия","Аскизский","95608000","Поселок Бискамжа","95608165","27566866","МУП  МО Бискамжинский поссовет \"Жилсервис\"","1905010991","190501001","Оказание услуг в сфере водоотведения и очистки сточных вод","VO"]
[17,"Республика Хакасия","Аскизский","95608000","Поселок Бискамжа","95608165","26651430","ООО \"КОМФОРТ\"","1905010159","190501001","Оказание услуг в сфере водоотведения и очистки сточных вод","VO"]
[18,"Республика Хакасия","Аскизский","95608000","Поселок Вершина Теи","95608169","26523124","МУП \"Управляющая компания\"","1905009234","190501001","Оказание услуг в сфере водоотведения и очистки сточных вод","VO"]
[19,"Республика Хакасия","Аскизский","95608000","Поселок Вершина Теи","95608169","26651430","ООО \"КОМФОРТ\"","1905010159","190501001","Оказание услуг в сфере водоотведения и очистки сточных вод","VO"]
[20,"Республика Хакасия","Бейский","95612000","Бейское","95612405","26441289","МУП \"Теплосеть\" с.Бея","1902024932","190201001","Оказание услуг в сфере водоотведения и очистки сточных вод","VO"]
[21,"Республика Хакасия","Бейский","95612000","Бейское","95612405","28873531","ООО \"Теплоресурс\"","1906004581","190601001","Оказание услуг в сфере водоотведения и очистки сточных вод","VO"]
[22,"Республика Хакасия","Бейский","95612000","Бейское","95612405","28454042","ООО \"Теплосервис\"","1902025527","190201001","Оказание услуг в сфере водоотведения и очистки сточных вод","VO"]
[23,"Республика Хакасия","Боградский","95615000","Боградское","95615410","26522906","ГУП \"Хакресводоканал\"","1901001202","191001001","Оказание услуг в сфере водоотведения и очистки сточных вод","VO"]
[24,"Республика Хакасия","Боградский","95615000","Боградское","95615410","26370737","МУП \"Боградский \"Коммунальник\" (с.Боград, с.Сон)","1907001008","190701001","Оказание услуг в сфере водоотведения и очистки сточных вод","VO"]
[25,"Республика Хакасия","Боградский","95615000","Боградское","95615410","28873027","ООО \"Водоканал Боградского района\"","1907004094","190701001","Оказание услуг в сфере водоотведения и очистки сточных вод","VO"]
[26,"Республика Хакасия","Боградский","95615000","Боградское","95615410","28422399","ООО \"Хакасресводоканал Боградского района\"","1907004062","190701001","Оказание услуг по перекачке","VO"]
[27,"Республика Хакасия","Боградский","95615000","Бородинское","95615420","26522906","ГУП \"Хакресводоканал\"","1901001202","191001001","Оказание услуг в сфере водоотведения и очистки сточных вод","VO"]
[28,"Республика Хакасия","Боградский","95615000","Бородинское","95615420","28873027","ООО \"Водоканал Боградского района\"","1907004094","190701001","Оказание услуг в сфере водоотведения и очистки сточных вод","VO"]
[29,"Республика Хакасия","Боградский","95615000","Бородинское","95615420","28422399","ООО \"Хакасресводоканал Боградского района\"","1907004062","190701001","Оказание услуг по перекачке","VO"]
[30,"Республика Хакасия","Боградский","95615000","Сонское","95615460","26522906","ГУП \"Хакресводоканал\"","1901001202","191001001","Оказание услуг в сфере водоотведения и очистки сточных вод","VO"]
[31,"Республика Хакасия","Боградский","95615000","Сонское","95615460","28873027","ООО \"Водоканал Боградского района\"","1907004094","190701001","Оказание услуг в сфере водоотведения и очистки сточных вод","VO"]
[32,"Республика Хакасия","Боградский","95615000","Сонское","95615460","28422399","ООО \"Хакасресводоканал Боградского района\"","1907004062","190701001","Оказание услуг по перекачке","VO"]
[33,"Республика Хакасия","Орджоникидзевский","95620000","Копьёвский поссовет","95620403","30406011","АО «ГУ ЖКХ»","5116000922","246545001","Оказание услуг в сфере водоотведения и очистки сточных вод","VO"]
[34,"Республика Хакасия","Орджоникидзевский","95620000","Копьёвский поссовет","95620403","26354673","МУП \"Копьевское ЖКХ\"","1908003015","190801001","Оказание услуг в сфере водоотведения и очистки сточных вод","VO"]
[35,"Республика Хакасия","Орджоникидзевский","95620000","Копьёвский сельсовет","95620420","30406011","АО «ГУ ЖКХ»","5116000922","246545001","Оказание услуг в сфере водоотведения и очистки сточных вод","VO"]
[36,"Республика Хакасия","Орджоникидзевский","95620000","Копьёвский сельсовет","95620420","27572930","ОАО \"Славянка\"","7702707386","246543001","Оказание услуг в сфере водоотведения и очистки сточных вод","VO"]
[37,"Республика Хакасия","Орджоникидзевский","95620000","Приисковое","95620437","26354674","МКП \"Приисковое ЖКХ\"","1908003135","190801001","Оказание услуг в сфере водоотведения и очистки сточных вод","VO"]
[38,"Республика Хакасия","Таштыпский","95625000","Таштыпское","95625440","26354677","МУП \"ТЖКХ\"","1909000391","190901001","Оказание услуг в сфере водоотведения и очистки сточных вод","VO"]
[39,"Республика Хакасия","Таштыпский","95625000","Таштыпское","95625440","28460574","ООО \"Тасхыл\"","1909001677","190901001","Оказание услуг в сфере водоотведения и очистки сточных вод","VO"]
[40,"Республика Хакасия","Усть-Абаканский","95630000","Опытненское","95630435","28012491","ООО \"Прогресс-Сервис\"","1910010891","191001001","Оказание услуг в сфере водоотведения и очистки сточных вод","VO"]
[41,"Республика Хакасия","Усть-Абаканский","95630000","Поселок Усть-Абакан","95630151","26522906","ГУП \"Хакресводоканал\"","1901001202","191001001","Оказание услуг в сфере водоотведения и очистки сточных вод","VO"]
[42,"Республика Хакасия","Усть-Абаканский","95630000","Поселок Усть-Абакан","95630151","28012491","ООО \"Прогресс-Сервис\"","1910010891","191001001","Оказание услуг в сфере водоотведения и очистки сточных вод","VO"]
[43,"Республика Хакасия","Усть-Абаканский","95630000","Поселок Усть-Абакан","95630151","26354684","ООО \"ТВК Усть-Абакан\"","1910012384","191001001","Оказание услуг в сфере водоотведения и очистки сточных вод","VO"]
[44,"Республика Хакасия","Усть-Абаканский","95630000","Расцветовское","95630445","27881593","ООО \"Теплоресурс\"","1910012352","191001001","Оказание услуг в сфере водоотведения и очистки сточных вод","VO"]
[45,"Республика Хакасия","Ширинский","95635000","Борцовское","95635410","28872996","ООО \"Хакресводоканал Ширинского района\"","1911008542","191101001","Оказание услуг в сфере водоотведения и очистки сточных вод","VO"]
[46,"Республика Хакасия","Ширинский","95635000","Жемчужненский сельсовет","95635430","28870673","ООО \"Фирма \"Ригор\"","2466095756","246601001","Оказание услуг в сфере водоотведения и очистки сточных вод","VO"]
[47,"Республика Хакасия","Ширинский","95635000","Коммунаровский сельсовет","95635401","26522906","ГУП \"Хакресводоканал\"","1901001202","191001001","Оказание услуг в сфере водоотведения и очистки сточных вод","VO"]
[48,"Республика Хакасия","Ширинский","95635000","Коммунаровский сельсовет","95635401","30388793","ООО \"ТВР\"","1911008729","191101001","Оказание услуг в сфере водоотведения","VO"]
[49,"Республика Хакасия","Ширинский","95635000","Коммунаровский сельсовет","95635401","28422385","ООО \"Хакасресводоканал Ширинского района\"","1911008422","191101001","Оказание услуг в сфере водоотведения и очистки сточных вод","VO"]
[50,"Республика Хакасия","Ширинский","95635000","Коммунаровский сельсовет","95635401","28872996","ООО \"Хакресводоканал Ширинского района\"","1911008542","191101001","Оказание услуг в сфере водоотведения и очистки сточных вод","VO"]
[51,"Республика Хакасия","Ширинский","95635000","Туимский сельсовет","95635403","26522906","ГУП \"Хакресводоканал\"","1901001202","191001001","Оказание услуг в сфере водоотведения и очистки сточных вод","VO"]
[52,"Республика Хакасия","Ширинский","95635000","Туимский сельсовет","95635403","28422385","ООО \"Хакасресводоканал Ширинского района\"","1911008422","191101001","Оказание услуг в сфере водоотведения и очистки сточных вод","VO"]
[53,"Республика Хакасия","Ширинский","95635000","Туимский сельсовет","95635403","28872996","ООО \"Хакресводоканал Ширинского района\"","1911008542","191101001","Оказание услуг в сфере водоотведения и очистки сточных вод","VO"]
[54,"Республика Хакасия","Ширинский","95635000","Туимский сельсовет","95635403","30388824","ООО УК \"Наш дом\"","1911008302","191101001","Оказание услуг в сфере водоотведения","VO"]
[55,"Республика Хакасия","Ширинский","95635000","Целинное","95635455","28872996","ООО \"Хакресводоканал Ширинского района\"","1911008542","191101001","Оказание услуг в сфере водоотведения и очистки сточных вод","VO"]
[56,"Республика Хакасия","Ширинский","95635000","Ширинский сельсовет","95635404","26522906","ГУП \"Хакресводоканал\"","1901001202","191001001","Оказание услуг в сфере водоотведения и очистки сточных вод","VO"]
[57,"Республика Хакасия","Ширинский","95635000","Ширинский сельсовет","95635404","30372070","ООО \"ВИС\"","1911008550","191101001","Оказание услуг в сфере водоотведения и очистки сточных вод","VO"]
[58,"Республика Хакасия","Ширинский","95635000","Ширинский сельсовет","95635404","26379238","ООО \"Вис\"","1911006263","191101001","Оказание услуг в сфере водоотведения и очистки сточных вод","VO"]
[59,"Республика Хакасия","Ширинский","95635000","Ширинский сельсовет","95635404","28870673","ООО \"Фирма \"Ригор\"","2466095756","246601001","Оказание услуг в сфере водоотведения и очистки сточных вод","VO"]
[60,"Республика Хакасия","Ширинский","95635000","Ширинский сельсовет","95635404","28422385","ООО \"Хакасресводоканал Ширинского района\"","1911008422","191101001","Оказание услуг в сфере водоотведения и очистки сточных вод","VO"]
[61,"Республика Хакасия","город Абаза","95702000","город Абаза","95702000","26522906","ГУП \"Хакресводоканал\"","1901001202","191001001","Оказание услуг в сфере водоотведения и очистки сточных вод","VO"]
[62,"Республика Хакасия","город Абаза","95702000","город Абаза","95702000","26354679","ООО \"Абаза-Энерго\"","1909051981","190901001","Оказание услуг в сфере водоотведения и очистки сточных вод","VO"]
[63,"Республика Хакасия","город Абаза","95702000","город Абаза","95702000","27753258","ООО \"УК \"Наш дом\"","1909000585","190901001","Оказание услуг по перекачке","VO"]
[64,"Республика Хакасия","город Абакан","95701000","город Абакан","95701000","30406011","АО «ГУ ЖКХ»","5116000922","246545001","Оказание услуг в сфере водоотведения и очистки сточных вод","VO"]
[65,"Республика Хакасия","город Абакан","95701000","город Абакан","95701000","30406011","АО «ГУ ЖКХ»","5116000922","246545001","Оказание услуг по перекачке","VO"]
[66,"Республика Хакасия","город Абакан","95701000","город Абакан","95701000","26522906","ГУП \"Хакресводоканал\"","1901001202","191001001","Оказание услуг в сфере водоотведения и очистки сточных вод","VO"]
[67,"Республика Хакасия","город Абакан","95701000","город Абакан","95701000","26522917","МП \"Водоканал\"","1901037777","190101001","Оказание услуг в сфере водоотведения и очистки сточных вод","VO"]
[68,"Республика Хакасия","город Абакан","95701000","город Абакан","95701000","26322832","ОАО \"Абаканвагонмаш\"","1901004997","190101001","Оказание услуг по перекачке","VO"]
[69,"Республика Хакасия","город Абакан","95701000","город Абакан","95701000","27572930","ОАО \"Славянка\"","7702707386","246543001","Оказание услуг в сфере водоотведения и очистки сточных вод","VO"]
[70,"Республика Хакасия","город Саяногорск","95708000","город Саяногорск","95708000","26522923","МУП \"Енисейводоканал\"","1902017364","190201001","Оказание услуг в сфере водоотведения и очистки сточных вод","VO"]
[71,"Республика Хакасия","город Саяногорск","95708000","город Саяногорск","95708000","28453902","ООО \"Саяногорские коммунальные системы\"","1902025326","190201001","Оказание услуг в сфере водоотведения и очистки сточных вод","VO"]
[72,"Республика Хакасия","город Саяногорск","95708000","город Саяногорск","95708000","27568933","ОП ЗАО \"Байкалэнерго\" - \"Саяногорские тепловые сети\"","3808108339","381201001","Оказание услуг в сфере очистки сточных вод","VO"]
[73,"Республика Хакасия","город Сорск","95709000","город Сорск","95709000","26522906","ГУП \"Хакресводоканал\"","1901001202","191001001","Оказание услуг в сфере водоотведения и очистки сточных вод","VO"]
[74,"Республика Хакасия","город Сорск","95709000","город Сорск","95709000","28975239","МУП \"Коммунальные системы\"","1910013229","191001001","Оказание услуг в сфере водоотведения и очистки сточных вод","VO"]
[75,"Республика Хакасия","город Сорск","95709000","город Сорск","95709000","28873567","ООО \"Горизонт\"","1911008461","191101001","Оказание услуг в сфере водоотведения и очистки сточных вод","VO"]
[76,"Республика Хакасия","город Сорск","95709000","город Сорск","95709000","28422371","ООО \"Хакасресводоканал\"","1910012754","191001001","Оказание услуг по перекачке","VO"]
[77,"Республика Хакасия","город Сорск","95709000","город Сорск","95709000","26523093","Сорский филиал ГУП \"Хакресводоканал\"","1901001202","190901001","Оказание услуг в сфере водоотведения и очистки сточных вод","VO"]
[78,"Республика Хакасия","город Черногорск","95715000","город Черногорск","95715000","26522906","ГУП \"Хакресводоканал\"","1901001202","191001001","Оказание услуг в сфере водоотведения и очистки сточных вод","VO"]
[79,"Республика Хакасия","город Черногорск","95715000","город Черногорск","95715000","26643021","ЗАО \"Черногорский Искож Регенерат\"","1901069169","190301001","Оказание услуг по перекачке","VO"]
[80,"Республика Хакасия","город Черногорск","95715000","город Черногорск","95715000","26523105","ООО \"Сибирская инициатива\"","1901051563","190101001","Оказание услуг в сфере водоотведения и очистки сточных вод","VO"]
[81,"Республика Хакасия","город Черногорск","95715000","город Черногорск","95715000","26961056","Черногорский  филиал ГУП РХ \"Хакресводоканал\"","1901001202","192001001","Оказание услуг по перекачке","VO"]

{"sheet":"modClassifierValidate","index":22,"n_rows":0,"n_cols":0,"rows_kept":0,"hidden":true}

{"sheet":"modHyp","index":23,"n_rows":0,"n_cols":0,"rows_kept":0,"hidden":true}

{"sheet":"modList03","index":24,"n_rows":0,"n_cols":0,"rows_kept":0,"hidden":true}

{"sheet":"modfrmDateChoose","index":25,"n_rows":0,"n_cols":0,"rows_kept":0,"hidden":true}

{"sheet":"modComm","index":26,"n_rows":0,"n_cols":0,"rows_kept":0,"hidden":true}

{"sheet":"modThisWorkbook","index":27,"n_rows":0,"n_cols":0,"rows_kept":0,"hidden":true}

{"sheet":"REESTR_MO","index":28,"n_rows":103,"n_cols":4,"rows_kept":103,"hidden":true}
["№","МР","МО","МО_ОКТМО"]
[1,"Алтайский","Алтайский","95605000"]
[2,"Алтайский","Аршановское","95605405"]
[3,"Алтайский","Белоярское","95605410"]
[4,"Алтайский","Изыхское","95605418"]
[5,"Алтайский","Кировское","95605420"]
[6,"Алтайский","Краснопольское","95605425"]
[7,"Алтайский","Новомихайловское","95605430"]
[8,"Алтайский","Новороссийское","95605435"]
[9,"Алтайский","Очурское","95605440"]
[10,"Алтайский","Подсинское","95605445"]
[11,"Аскизский","Аскизский","95608000"]
[12,"Аскизский","Аскизское","95608405"]
[13,"Аскизский","Базинское","95608410"]
[14,"Аскизский","Балыксинское","95608409"]
[15,"Аскизский","Бельтирское","95608412"]
[16,"Аскизский","Бирикчульское","95608413"]
[17,"Аскизский","Верх-Аскизское","95608415"]
[18,"Аскизский","Есинское","95608420"]
[19,"Аскизский","Кызласское","95608430"]
[20,"Аскизский","Поселок Аскиз","95608151"]
[21,"Аскизский","Поселок Бискамжа","95608165"]
[22,"Аскизский","Поселок Вершина Теи","95608169"]
[23,"Аскизский","Пуланкольское","95608440"]
[24,"Аскизский","Усть-Камыштинское","95608450"]
[25,"Аскизский","Усть-Чульское","95608455"]
[26,"Бейский","Бейский","95612000"]
[27,"Бейский","Бейское","95612405"]
[28,"Бейский","Большемонокское","95612410"]
[29,"Бейский","Бондаревское","95612415"]
[30,"Бейский","Кирбинское","95612425"]
[31,"Бейский","Куйбышевское","95612430"]
[32,"Бейский","Межселенные территории, находящиеся вне границ сельских поселений Бейского района","95612701"]
[33,"Бейский","Новоенисейское","95612440"]
[34,"Бейский","Новотроицкое","95612445"]
[35,"Бейский","Сабинское","95612455"]
[36,"Бейский","Табатское","95612460"]
[37,"Боградский","Боградский","95615000"]
[38,"Боградский","Боградское","95615410"]
[39,"Боградский","Большеербинское","95615415"]
[40,"Боградский","Бородинское","95615420"]
[41,"Боградский","Знаменское","95615430"]
[42,"Боградский","Первомайское","95615440"]
[43,"Боградский","Пушновское","95615445"]
[44,"Боградский","Сарагашское","95615450"]
[45,"Боградский","Советско-Хакасское","95615455"]
[46,"Боградский","Сонское","95615460"]
[47,"Боградский","Троицкое","95615404"]
[48,"Орджоникидзевский","Гайдаровское","95620405"]
[49,"Орджоникидзевский","Копьёвский поссовет","95620403"]
[50,"Орджоникидзевский","Копьёвский сельсовет","95620420"]
[51,"Орджоникидзевский","Красноиюсское","95620425"]
[52,"Орджоникидзевский","Новомарьясовское","95620430"]
[53,"Орджоникидзевский","Орджоникидзевский","95620000"]
[54,"Орджоникидзевский","Приисковое","95620437"]
[55,"Орджоникидзевский","Саралинское","95620440"]
[56,"Орджоникидзевский","Устинкинское","95620450"]
[57,"Орджоникидзевский","с. Орджоникидзевское","95620435"]
[58,"Таштыпский","Анчулское","95625405"]
[59,"Таштыпский","Арбатское","95625408"]
[60,"Таштыпский","Большесейское","95625415"]
[61,"Таштыпский","Бутрахтинское","95625420"]
[62,"Таштыпский","Имекское","95625422"]
[63,"Таштыпский","Матурское","95625425"]
[64,"Таштыпский","Межселенная территория Таштыпского муниципального района, включающая п Кубайка, п Большой Он, п Малый Анзас","95625702"]
[65,"Таштыпский","Нижнесирское","95625430"]
[66,"Таштыпский","Таштыпский","95625000"]
[67,"Таштыпский","Таштыпское","95625440"]
[68,"Усть-Абаканский","Вершино-Биджинское","95630405"]
[69,"Усть-Абаканский","Весенненское","95630410"]
[70,"Усть-Абаканский","Доможаковское","95630415"]
[71,"Усть-Абаканский","Калининское","95630425"]
[72,"Усть-Абаканский","Московское","95630430"]
[73,"Усть-Абаканский","Опытненское","95630435"]
[74,"Усть-Абаканский","Поселок Усть-Абакан","95630151"]
[75,"Усть-Абаканский","Райковское","95630440"]
[76,"Усть-Абаканский","Расцветовское","95630445"]
[77,"Усть-Абаканский","Сапоговское","95630455"]
[78,"Усть-Абаканский","Солнечное","95630460"]
[79,"Усть-Абаканский","Усть-Абаканский","95630000"]
[80,"Усть-Абаканский","Усть-Бюрское","95630465"]
[81,"Усть-Абаканский","Чарковское","95630470"]
[82,"Ширинский","Беренжакское","95635405"]
[83,"Ширинский","Борцовское","95635410"]
[84,"Ширинский","Воротское","95635415"]
[85,"Ширинский","Ефремкинское","95635425"]
[86,"Ширинский","Жемчужненский сельсовет","95635430"]
[87,"Ширинский","Коммунаровский сельсовет","95635401"]
[88,"Ширинский","Селосонское","95635435"]
[89,"Ширинский","Соленоозерное","95635438"]
[90,"Ширинский","Спиринское","95635440"]
[91,"Ширинский","Туимский сельсовет","95635403"]
[92,"Ширинский","Фыркальское","95635450"]
[93,"Ширинский","Целинное","95635455"]
[94,"Ширинский","Черноозерное","95635460"]
[95,"Ширинский","Ширинский","95635000"]
[96,"Ширинский","Ширинский сельсовет","95635404"]
[97,"Ширинский","село Джирим","95635420"]
[98,"город Абаза","город Абаза","95702000"]
[99,"город Абакан","город Абакан","95701000"]
[100,"город Саяногорск","город Саяногорск","95708000"]
[101,"город Сорск","город Сорск","95709000"]
[102,"город Черногорск","город Черногорск","95715000"]

{"sheet":"modfrmReestrMR","index":29,"n_rows":0,"n_cols":0,"rows_kept":0,"hidden":true}

{"sheet":"modfrmCheckUpdates","index":30,"n_rows":0,"n_cols":0,"rows_kept":0,"hidden":true}